fUSD/lending_fUSD_20240426
["ID","MTS","AMOUNT","RATE_DAILY","PERIOD"]
[323607254,1714109443675,-1466.49,0.00011891,2]
[323607255,1714109443684,-275.52400299,0.00011891,2]
[323607256,1714109443693,-500.0,0.00011891,2]
[323607257,1714109443702,-500.0,0.00011891,2]
[323607258,1714109443711,-610.1501248,0.00011891,2]
[323607259,1714109443721,-500.0,0.00011891,2]
[323607260,1714109443730,-500.0,0.00011891,2]
[323607261,1714109443739,-500.0,0.00011891,2]
[323607262,1714109443748,-500.0,0.00011891,2]
[323607263,1714109443759,-790.48,0.00011891,2]
[323607264,1714109443768,-500.0,0.00011891,2]
[323607265,1714109443779,-500.0,0.00011891,2]
[323607266,1714109443788,-617.47867332,0.00011891,2]
[323607267,1714109443798,-500.0,0.00011891,2]
[323607268,1714109443808,-931.89,0.00011891,2]
[323607269,1714109443817,-500.0,0.00011891,2]
[323607270,1714109443827,-500.0,0.00011891,2]
[323607271,1714109443837,-500.0,0.00011891,2]
[323607272,1714109443847,-500.0,0.00011891,2]
[323607273,1714109443857,-644.68,0.00011891,2]
[323607274,1714109443866,-500.0,0.00011891,2]
[323607275,1714109443876,-500.0,0.00011891,2]
[323607277,1714109443885,-500.0,0.00011891,2]
[323607279,1714109443895,-500.0,0.00011891,2]
[323607280,1714109443904,-500.0,0.00011891,2]
[323607281,1714109443914,-520.47403052,0.00011891,2]
[323607282,1714109443924,-1085.7,0.00011891,2]
[323607283,1714109443933,-510.28,0.00011891,2]
[323607284,1714109443942,-1420.99,0.00011891,2]
[323607285,1714109443952,-500.0,0.00011891,2]
[323607286,1714109443961,-500.0,0.00011891,2]
[323607287,1714109443971,-1061.93,0.00011891,2]
[323607288,1714109443980,-500.0,0.00011891,2]
[323607289,1714109443989,-500.0,0.00011891,2]
[323607290,1714109443998,-500.0,0.00011891,2]
[323607291,1714109444009,-500.0,0.00011891,2]
[323607293,1714109444019,-500.0,0.00011891,2]
[323607294,1714109444029,-500.0,0.00011891,2]
[323607295,1714109444039,-500.0,0.00011891,2]
[323607296,1714109444049,-1415.46,0.00011891,2]
[323607297,1714109444059,-500.0,0.00011891,2]
[323607298,1714109444068,-343.50450896,0.00011891,2]
[323607299,1714109444078,-500.0,0.00011891,2]
[323607300,1714109444087,-2111.52,0.00011891,2]
[323607301,1714109444096,-500.0,0.00011891,2]
[323607302,1714109444106,-500.0,0.00011891,2]
[323607303,1714109444115,-418.53,0.00011891,2]
[323607304,1714109444124,-3295.0,0.00011891,2]
[323607305,1714109444133,-1137.16,0.00011891,2]
[323607306,1714109444143,-1183.12,0.00011891,2]
[323607307,1714109444153,-500.0,0.00011891,2]
[323607308,1714109444162,-673.05,0.00011891,2]
[323607309,1714109444171,-500.0,0.00011891,2]
[323607310,1714109444180,-500.0,0.00011891,2]
[323607311,1714109444189,-500.0,0.00011891,2]
[323607312,1714109444199,-500.0,0.00011891,2]
[323607313,1714109444208,-898.71,0.00011891,2]
[323607314,1714109444218,-604.42,0.00011891,2]
[323607315,1714109444227,-2328.04,0.00011891,2]
[323607316,1714109444236,-500.0,0.00011891,2]
[323607317,1714109444246,-500.0,0.00011891,2]
[323607318,1714109444256,-500.0,0.00011891,2]
[323607319,1714109444264,-594.02,0.00011891,2]
[323607320,1714109444273,-500.0,0.00011891,2]
[323607321,1714109444282,-1073.48,0.00011891,2]
[323607322,1714109444292,-500.0,0.00011891,2]
[323607323,1714109444301,-5479.47,0.00011891,2]
[323607324,1714109444311,-166.40909561,0.00011891,2]
[323607325,1714109444320,-500.0,0.00011891,2]
[323607326,1714109444329,-500.0,0.00011891,2]
[323607327,1714109444339,-500.0,0.00011891,2]
[323607328,1714109444349,-500.0,0.00011891,2]
[323607329,1714109444358,-2100.05,0.00011891,2]
[323607330,1714109444368,-500.0,0.00011891,2]
[323607331,1714109444377,-500.0,0.00011891,2]
[323607332,1714109444386,-965.98,0.00011891,2]
[323607333,1714109444395,-509.68,0.00011891,2]
[323607334,1714109444404,-500.0,0.00011891,2]
[323607335,1714109444414,-196.64,0.00011891,2]
[323607336,1714109444423,-500.0,0.00011891,2]
[323607337,1714109444433,-500.0,0.00011891,2]
[323607338,1714109444443,-500.0,0.00011891,2]
[323607339,1714109444452,-500.0,0.00011891,2]
[323607340,1714109444462,-500.0,0.00011891,2]
[323607341,1714109444471,-500.0,0.00011891,2]
[323607342,1714109444481,-622.52,0.00011891,2]
[323607343,1714109444490,-260.35,0.00011891,2]
[323607344,1714109444499,-500.0,0.00011891,2]
[323607345,1714109444509,-1916.64,0.00011891,2]
[323607346,1714109444518,-500.0,0.00011891,2]
[323607347,1714109444530,-500.0,0.00011992,2]
[323607348,1714109444540,-500.0,0.00011992,2]
[323607349,1714109444743,-5000.0,0.00012,2]
[323607350,1714109444753,-3071.20810051,0.00012,2]
[323607351,1714109444766,-2750.0,0.00012,3]
[323607352,1714109444775,-189.514,0.0001203,2]
[323607353,1714109444785,-1859.0,0.0001203,2]
[323607354,1714109444795,-266.623,0.0001203,2]
[323607355,1714109444804,-257.0,0.0001203,2]
[323607356,1714109444814,-3118.0,0.0001203,2]
[323607357,1714109444823,-2444.0,0.0001203,2]
[323607358,1714109444833,-150.0,0.0001203,2]
[323607359,1714109444843,-1475.0,0.0001203,2]
[323607360,1714109444852,-420.0,0.0001203,2]
[323607361,1714109444862,-150.0,0.0001203,2]
[323607362,1714109444871,-214.0,0.0001203,2]
[323607363,1714109444881,-1641.0,0.0001203,2]
[323607364,1714109444890,-443.0,0.0001203,2]
[323607365,1714109444900,-1140.0,0.0001203,2]
[323607366,1714109444909,-970.0,0.0001203,2]
[323607367,1714109444919,-861.158,0.0001203,2]
[323607368,1714109444928,-462.0,0.0001203,2]
[323607369,1714109444937,-1394.0,0.0001203,2]
[323607370,1714109444946,-33747.546,0.0001203,2]
[323607371,1714109444956,-2752.24102618,0.0001203,2]
[323607372,1714109445216,-3143.75897382,0.0001203,2]
[323607373,1714109445226,-5729.0,0.0001203,2]
[323607374,1714109445235,-491.284,0.0001203,2]
[323607375,1714109445245,-1228.0,0.0001203,2]
[323607376,1714109445255,-542.0,0.0001203,2]
[323607377,1714109445264,-166.99,0.00012033,2]
[323607378,1714109445273,-500.0,0.00012165,2]
[323607379,1714109445283,-526.91311458,0.00012165,2]
[323607380,1714109445292,-500.0,0.00012165,2]
[323607381,1714109445301,-500.0,0.00012165,2]
[323607382,1714109445310,-500.0,0.00012165,2]
[323607383,1714109445319,-500.0,0.00012165,2]
[323607384,1714109445328,-500.0,0.00012165,2]
[323607385,1714109445338,-500.0,0.00012165,2]
[323607386,1714109445347,-500.0,0.00012165,2]
[323607387,1714109445356,-500.0,0.00012165,2]
[323607388,1714109445365,-500.0,0.00012165,2]
[323607389,1714109445374,-500.0,0.00012165,2]
[323607390,1714109445384,-500.0,0.00012165,2]
[323607391,1714109445393,-500.0,0.00012165,2]
[323607392,1714109445403,-500.0,0.00012165,2]
[323607393,1714109445412,-150.0,0.00012165,2]
[323607394,1714109445421,-500.0,0.00012165,2]
[323607395,1714109445431,-500.0,0.00012165,2]
[323607396,1714109445440,-500.0,0.00012165,2]
[323607397,1714109445449,-500.0,0.00012165,2]
[323607398,1714109445459,-500.0,0.00012165,2]
[323607399,1714109445468,-500.0,0.00012165,2]
[323607400,1714109445478,-301.65678335,0.00012165,2]
[323607401,1714109445487,-500.0,0.00012165,2]
[323607402,1714109445496,-500.0,0.00012165,2]
[323607403,1714109445506,-500.0,0.00012165,2]
[323607404,1714109445516,-469.92919532,0.00012165,2]
[323607405,1714109445525,-500.0,0.00012165,2]
[323607406,1714109445538,-1466.49,0.00012165,2]
[323607407,1714109445548,-500.0,0.00012165,2]
[323607408,1714109445558,-500.0,0.00012165,2]
[323607409,1714109445567,-500.0,0.00012165,2]
[323607410,1714109445577,-500.0,0.00012165,2]
[323607411,1714109445587,-500.0,0.00012165,2]
[323607412,1714109445597,-500.0,0.00012165,2]
[323607413,1714109445608,-790.48,0.00012165,2]
[323607414,1714109445617,-500.0,0.00012165,2]
[323607415,1714109445627,-500.0,0.00012165,2]
[323607416,1714109445637,-345.25356298,0.00012165,2]
[323607417,1714109445647,-931.89,0.00012165,2]
[323607418,1714109445656,-500.0,0.00012165,2]
[323607419,1714109445666,-500.0,0.00012165,2]
[323607420,1714109445676,-500.0,0.00012165,2]
[323607421,1714109445686,-644.68,0.00012165,2]
[323607422,1714109445696,-500.0,0.00012165,2]
[323607423,1714109445705,-500.0,0.00012165,2]
[323607424,1714109445715,-500.0,0.00012165,2]
[323607425,1714109445724,-500.0,0.00012165,2]
[323607426,1714109445734,-500.0,0.00012165,2]
[323607427,1714109445743,-1085.7,0.00012165,2]
[323607428,1714109445753,-510.28,0.00012165,2]
[323607429,1714109445766,-1420.99,0.00012165,2]
[323607430,1714109445775,-500.0,0.00012165,2]
[323607431,1714109445787,-500.0,0.00012165,2]
[323607432,1714109445796,-1061.93,0.00012165,2]
[323607433,1714109445806,-500.0,0.00012165,2]
[323607434,1714109445815,-500.0,0.00012165,2]
[323607435,1714109445824,-500.0,0.00012165,2]
[323607436,1714109445833,-500.0,0.00012165,2]
[323607437,1714109445844,-500.0,0.00012165,2]
[323607438,1714109445853,-500.0,0.00012165,2]
[323607439,1714109445862,-500.0,0.00012165,2]
[323607440,1714109445872,-1415.46,0.00012165,2]
[323607441,1714109445881,-500.0,0.00012165,2]
[323607442,1714109445891,-500.0,0.00012165,2]
[323607443,1714109445900,-2111.52,0.00012165,2]
[323607444,1714109445910,-500.0,0.00012165,2]
[323607445,1714109445919,-500.0,0.00012165,2]
[323607446,1714109445929,-3295.0,0.00012165,2]
[323607447,1714109445938,-1137.16,0.00012165,2]
[323607448,1714109445947,-1183.12,0.00012165,2]
[323607449,1714109445957,-500.0,0.00012165,2]
[323607450,1714109445966,-673.05,0.00012165,2]
[323607451,1714109445976,-500.0,0.00012165,2]
[323607452,1714109445986,-500.0,0.00012165,2]
[323607453,1714109445996,-500.0,0.00012165,2]
[323607454,1714109446006,-898.71,0.00012165,2]
[323607455,1714109446016,-604.42,0.00012165,2]
[323607456,1714109446026,-2328.04,0.00012165,2]
[323607457,1714109446035,-500.0,0.00012165,2]
[323607458,1714109446045,-500.0,0.00012165,2]
[323607459,1714109446055,-500.0,0.00012165,2]
[323607460,1714109446064,-594.02,0.00012165,2]
[323607461,1714109446073,-500.0,0.00012165,2]
[323607462,1714109446083,-1073.48,0.00012165,2]
[323607463,1714109446092,-500.0,0.00012165,2]
[323607464,1714109446102,-5479.47,0.00012165,2]
[323607465,1714109446111,-500.0,0.00012165,2]
[323607466,1714109446121,-500.0,0.00012165,2]
[323607467,1714109446131,-500.0,0.00012165,2]
[323607468,1714109446140,-500.0,0.00012165,2]
[323607469,1714109446151,-2100.05,0.00012165,2]
[323607470,1714109446161,-500.0,0.00012165,2]
[323607471,1714109446170,-377.18907801,0.00012165,2]
[323607472,1714109446180,-965.98,0.00012165,2]
[323607473,1714109446190,-509.68,0.00012165,2]
[323607475,1714109446199,-249.22855336,0.00012165,2]
[323607477,1714109446208,-500.0,0.00012165,2]
[323607478,1714109446218,-500.0,0.00012165,2]
[323607479,1714109446227,-500.0,0.00012165,2]
[323607480,1714109446237,-500.0,0.00012165,2]
[323607481,1714109446246,-500.0,0.00012165,2]
[323607482,1714109446256,-500.0,0.00012165,2]
[323607483,1714109446265,-622.52,0.00012165,2]
[323607484,1714109446274,-500.0,0.00012165,2]
[323607485,1714109446283,-1916.64,0.00012165,2]
[323607486,1714109446292,-500.0,0.00012165,2]
[323607487,1714109446301,-1000.0,0.00012229,2]
[323607488,1714109446310,-500.0,0.00012229,2]
[323607489,1714109446319,-500.0,0.00012266,2]
[323607490,1714109446329,-500.0,0.00012266,2]
[323607491,1714109446338,-300.78,0.00012274,2]
[323607492,1714109446347,-419.25,0.00012274,2]
[323607493,1714109446356,-522.18,0.00012274,2]
[323607494,1714109446366,-187.72,0.00012274,2]
[323607495,1714109446375,-522.18,0.00012274,2]
[323607496,1714109446384,-521.85,0.00012274,2]
[323607497,1714109446393,-419.25,0.00012274,2]
[323607498,1714109446402,-273.04,0.00012274,2]
[323607499,1714109446412,-700.46,0.00012274,2]
[323607500,1714109446422,-419.25,0.00012274,2]
[323607501,1714109446431,-163.58,0.00012274,2]
[323607502,1714109446440,-150.0,0.00012279,2]
[323607503,1714109446450,-1113.0,0.00012328,2]
[323607504,1714109446459,-528.0,0.00012328,2]
[323607505,1714109446469,-2612.33854269,0.00012343,7]
[323607506,1714109446478,-305.0,0.000124,2]
[323607507,1714109446488,-584.0,0.000124,2]
[323607508,1714109446497,-500.0,0.00012439,2]
[323607509,1714109446508,-500.0,0.00012439,2]
[323607510,1714109446518,-500.0,0.00012439,2]
[323607511,1714109446528,-500.0,0.00012439,2]
[323607512,1714109446538,-500.0,0.00012439,2]
[323607513,1714109446548,-500.0,0.00012439,2]
[323607514,1714109446557,-500.0,0.00012439,2]
[323607515,1714109446567,-294.81595432,0.00012439,2]
[323607516,1714109446576,-500.0,0.00012439,2]
[323607517,1714109446586,-500.0,0.00012439,2]
[323607518,1714109446595,-500.0,0.00012439,2]
[323607519,1714109446607,-500.0,0.00012439,2]
[323607520,1714109446617,-500.0,0.00012439,2]
[323607521,1714109446626,-158.76768702,0.00012439,2]
[323607522,1714109446636,-150.0,0.00012439,2]
[323607523,1714109446645,-500.0,0.00012439,2]
[323607524,1714109446654,-500.0,0.00012439,2]
[323607525,1714109446663,-500.0,0.00012439,2]
[323607526,1714109446672,-500.0,0.00012439,2]
[323607527,1714109446681,-500.0,0.00012439,2]
[323607528,1714109446691,-500.0,0.00012439,2]
[323607529,1714109446700,-500.0,0.00012439,2]
[323607530,1714109446709,-500.0,0.00012439,2]
[323607531,1714109446719,-500.0,0.00012439,2]
[323607532,1714109446728,-500.0,0.00012439,2]
[323607533,1714109446737,-1466.49,0.00012439,2]
[323607534,1714109446747,-500.0,0.00012439,2]
[323607535,1714109446757,-500.0,0.00012439,2]
[323607536,1714109446767,-500.0,0.00012439,2]
[323607537,1714109446776,-187.04584121,0.00012439,2]
[323607538,1714109446785,-500.0,0.00012439,2]
[323607539,1714109446795,-500.0,0.00012439,2]
[323607540,1714109446804,-790.48,0.00012439,2]
[323607541,1714109446813,-500.0,0.00012439,2]
[323607542,1714109446823,-500.0,0.00012439,2]
[323607543,1714109446832,-931.89,0.00012439,2]
[323607544,1714109446841,-500.0,0.00012439,2]
[323607545,1714109446850,-500.0,0.00012439,2]
[323607546,1714109446860,-500.0,0.00012439,2]
[323607547,1714109446869,-644.68,0.00012439,2]
[323607548,1714109446878,-500.0,0.00012439,2]
[323607549,1714109446887,-536.33438938,0.00012439,2]
[323607550,1714109446896,-500.0,0.00012439,2]
[323607551,1714109446905,-500.0,0.00012439,2]
[323607552,1714109446914,-500.0,0.00012439,2]
[323607553,1714109446924,-1085.7,0.00012439,2]
[323607554,1714109446934,-510.28,0.00012439,2]
[323607555,1714109446944,-1420.99,0.00012439,2]
[323607556,1714109446953,-500.0,0.00012439,2]
[323607557,1714109446963,-500.0,0.00012439,2]
[323607558,1714109446972,-1061.93,0.00012439,2]
[323607559,1714109446981,-500.0,0.00012439,2]
[323607560,1714109446990,-500.0,0.00012439,2]
[323607561,1714109446999,-626.72374562,0.00012439,2]
[323607562,1714109447008,-500.0,0.00012439,2]
[323607563,1714109447075,-500.0,0.00012439,2]
[323607564,1714109447084,-500.0,0.00012439,2]
[323607565,1714109447094,-500.0,0.00012439,2]
[323607566,1714109447103,-1415.46,0.00012439,2]
[323607567,1714109447112,-500.0,0.00012439,2]
[323607568,1714109447121,-500.0,0.00012439,2]
[323607569,1714109447129,-2111.52,0.00012439,2]
[323607570,1714109447138,-500.0,0.00012439,2]
[323607571,1714109447148,-500.0,0.00012439,2]
[323607572,1714109447157,-3295.0,0.00012439,2]
[323607573,1714109447168,-1137.16,0.00012439,2]
[323607574,1714109447177,-1183.12,0.00012439,2]
[323607575,1714109447186,-500.0,0.00012439,2]
[323607576,1714109447194,-673.05,0.00012439,2]
[323607577,1714109447203,-500.0,0.00012439,2]
[323607578,1714109447212,-500.0,0.00012439,2]
[323607579,1714109447221,-500.0,0.00012439,2]
[323607580,1714109447231,-898.71,0.00012439,2]
[323607581,1714109447240,-604.42,0.00012439,2]
[323607582,1714109447249,-2328.04,0.00012439,2]
[323607583,1714109447259,-500.0,0.00012439,2]
[323607584,1714109447268,-500.0,0.00012439,2]
[323607585,1714109447277,-231.77,0.00012439,2]
[323607586,1714109447286,-594.02,0.00012439,2]
[323607587,1714109447294,-500.0,0.00012439,2]
[323607588,1714109447303,-1073.48,0.00012439,2]
[323607589,1714109447313,-500.0,0.00012439,2]
[323607590,1714109447322,-5479.47,0.00012439,2]
[323607591,1714109447331,-483.19484608,0.00012439,2]
[323607592,1714109447340,-500.0,0.00012439,2]
[323607593,1714109447350,-500.0,0.00012439,2]
[323607594,1714109447359,-500.0,0.00012439,2]
[323607595,1714109447368,-2100.05,0.00012439,2]
[323607596,1714109447377,-500.0,0.00012439,2]
[323607597,1714109447386,-965.98,0.00012439,2]
[323607598,1714109447394,-509.68,0.00012439,2]
[323607599,1714109447404,-500.0,0.00012439,2]
[323607600,1714109447413,-500.0,0.00012439,2]
[323607601,1714109447422,-500.0,0.00012439,2]
[323607602,1714109447431,-500.0,0.00012439,2]
[323607603,1714109447440,-500.0,0.00012439,2]
[323607604,1714109447450,-500.0,0.00012439,2]
[323607605,1714109447458,-622.52,0.00012439,2]
[323607606,1714109447467,-500.0,0.00012439,2]
[323607607,1714109447476,-1916.64,0.00012439,2]
[323607608,1714109447486,-500.0,0.00012439,2]
[323607609,1714109447494,-251.69476738,0.000125,2]
[323607610,1714109447503,-155.0,0.000125,2]
[323607611,1714109447514,-1000.0,0.00012532,2]
[323607612,1714109447525,-500.0,0.00012532,2]
[323607613,1714109447537,-500.0,0.0001254,2]
[323607614,1714109447547,-500.0,0.0001254,2]
[323607615,1714109447557,-390.79,0.00012679,2]
[323607616,1714109447567,-500.0,0.0001269,2]
[323607617,1714109447577,-500.0,0.00012698,2]
[323607618,1714109447588,-500.0,0.00012707,2]
[323607619,1714109447598,-500.0,0.00012713,2]
[323607620,1714109447607,-500.0,0.00012713,2]
[323607621,1714109447617,-500.0,0.00012713,2]
[323607622,1714109447627,-159.37225066,0.00012713,2]
[323607623,1714109447636,-500.0,0.00012713,2]
[323607624,1714109447645,-156.55346143,0.00012713,2]
[323607625,1714109447654,-500.0,0.00012713,2]
[323607626,1714109447664,-500.0,0.00012713,2]
[323607627,1714109447673,-500.0,0.00012713,2]
[323607628,1714109447682,-500.0,0.00012713,2]
[323607629,1714109447691,-500.0,0.00012713,2]
[323607630,1714109447700,-500.0,0.00012713,2]
[323607631,1714109447709,-150.0,0.00012713,2]
[323607632,1714109447718,-500.0,0.00012713,2]
[323607633,1714109447727,-500.0,0.00012713,2]
[323607634,1714109447735,-500.0,0.00012713,2]
[323607635,1714109447745,-500.0,0.00012713,2]
[323607636,1714109447754,-268.12710015,0.00012713,2]
[323607637,1714109447764,-500.0,0.00012713,2]
[323607638,1714109447773,-500.0,0.00012713,2]
[323607639,1714109447782,-500.0,0.00012713,2]
[323607640,1714109447791,-598.22547082,0.00012713,2]
[323607641,1714109447800,-500.0,0.00012713,2]
[323607642,1714109447809,-1466.49,0.00012713,2]
[323607643,1714109447818,-500.0,0.00012713,2]
[323607644,1714109447827,-500.0,0.00012713,2]
[323607645,1714109447836,-500.0,0.00012713,2]
[323607646,1714109447846,-500.0,0.00012713,2]
[323607647,1714109447855,-500.0,0.00012713,2]
[323607648,1714109447864,-790.48,0.00012713,2]
[323607649,1714109447873,-500.0,0.00012713,2]
[323607650,1714109447882,-249.43599886,0.00012713,2]
[323607651,1714109447891,-931.89,0.00012713,2]
[323607652,1714109447901,-500.0,0.00012713,2]
[323607653,1714109447910,-500.0,0.00012713,2]
[323607654,1714109447920,-500.0,0.00012713,2]
[323607655,1714109447929,-644.68,0.00012713,2]
[323607656,1714109447938,-589.41971006,0.00012713,2]
[323607657,1714109447947,-500.0,0.00012713,2]
[323607658,1714109447956,-500.0,0.00012713,2]
[323607659,1714109447965,-500.0,0.00012713,2]
[323607660,1714109447974,-1085.7,0.00012713,2]
[323607661,1714109447983,-510.28,0.00012713,2]
[323607662,1714109447992,-1420.99,0.00012713,2]
[323607663,1714109448002,-500.0,0.00012713,2]
[323607664,1714109448012,-500.0,0.00012713,2]
[323607665,1714109448021,-1061.93,0.00012713,2]
[323607666,1714109448030,-500.0,0.00012713,2]
[323607667,1714109448041,-500.0,0.00012713,2]
[323607668,1714109448051,-500.0,0.00012713,2]
[323607669,1714109448060,-500.0,0.00012713,2]
[323607670,1714109448069,-500.0,0.00012713,2]
[323607671,1714109448078,-1415.46,0.00012713,2]
[323607672,1714109448087,-500.0,0.00012713,2]
[323607673,1714109448096,-597.72253079,0.00012713,2]
[323607674,1714109448106,-2111.52,0.00012713,2]
[323607675,1714109448115,-500.0,0.00012713,2]
[323607676,1714109448124,-500.0,0.00012713,2]
[323607677,1714109448135,-3295.0,0.00012713,2]
[323607678,1714109448146,-1137.16,0.00012713,2]
[323607679,1714109448155,-1183.12,0.00012713,2]
[323607680,1714109448164,-500.0,0.00012713,2]
[323607681,1714109448173,-673.05,0.00012713,2]
[323607682,1714109448182,-500.0,0.00012713,2]
[323607683,1714109448191,-500.0,0.00012713,2]
[323607684,1714109448199,-500.0,0.00012713,2]
[323607685,1714109448208,-898.71,0.00012713,2]
[323607686,1714109448217,-604.42,0.00012713,2]
[323607687,1714109448226,-2328.04,0.00012713,2]
[323607688,1714109448235,-500.0,0.00012713,2]
[323607689,1714109448244,-500.0,0.00012713,2]
[323607690,1714109448253,-594.02,0.00012713,2]
[323607691,1714109448266,-500.0,0.00012713,2]
[323607692,1714109448275,-1073.48,0.00012713,2]
[323607693,1714109448284,-500.0,0.00012713,2]
[323607694,1714109448293,-5479.47,0.00012713,2]
[323607695,1714109448302,-500.0,0.00012713,2]
[323607696,1714109448312,-500.0,0.00012713,2]
[323607697,1714109448321,-2100.05,0.00012713,2]
[323607698,1714109448331,-500.0,0.00012713,2]
[323607699,1714109448340,-965.98,0.00012713,2]
[323607700,1714109448350,-509.68,0.00012713,2]
[323607701,1714109448359,-500.0,0.00012713,2]
[323607702,1714109448369,-500.0,0.00012713,2]
[323607703,1714109448378,-500.0,0.00012713,2]
[323607704,1714109448388,-500.0,0.00012713,2]
[323607705,1714109448397,-500.0,0.00012713,2]
[323607706,1714109448407,-500.0,0.00012713,2]
[323607707,1714109448417,-622.52,0.00012713,2]
[323607708,1714109448425,-500.0,0.00012713,2]
[323607709,1714109448434,-1916.64,0.00012713,2]
[323607710,1714109448443,-500.0,0.00012713,2]
[323607711,1714109448452,-500.0,0.00012716,2]
[323607712,1714109448462,-2467.23963,0.0001281,2]
[323607713,1714109448471,-500.0,0.00012814,2]
[323607714,1714109448480,-500.0,0.00012814,2]
[323607715,1714109448489,-1000.0,0.00012835,2]
[323607716,1714109448498,-500.0,0.00012835,2]
[323607717,1714109448507,-150.0,0.00012877,2]
[323607718,1714109448523,-150.0,0.00012877,2]
[323607719,1714109448535,-150.0,0.00012877,2]
[323607720,1714109448544,-150.0,0.00012877,2]
[323607721,1714109448553,-150.0,0.00012877,2]
[323607722,1714109448563,-301.84,0.00012877,2]
[323607723,1714109448572,-166.99,0.00012884,2]
[323607724,1714109448581,-822.34054423,0.00012887,2]
[323607725,1714109448590,-822.34054412,0.00012888,2]
[323607726,1714109448600,-822.34054412,0.00012889,2]
[323607727,1714109448611,-822.34054412,0.00012891,2]
[323607728,1714109448621,-822.34054412,0.00012892,2]
[323607729,1714109448630,-822.34054412,0.00012893,2]
[323607730,1714109448639,-822.34054412,0.00012894,2]
[323607731,1714109448648,-250.0999,0.00012895,2]
[323607732,1714109448657,-822.34054412,0.00012895,2]
[323607733,1714109448666,-822.34054412,0.00012896,2]
[323607734,1714109448676,-822.34054412,0.00012898,2]
[323607735,1714109448685,-822.34054412,0.00012899,2]
[323607736,1714109448694,-366.83619652,0.000129,2]
[323607737,1714109448703,-600.0,0.000129,2]
[323607738,1714109448712,-822.34054412,0.000129,2]
[323607739,1714109448721,-368.14644526,0.000129,2]
[323607740,1714109448730,-631.86019631,0.000129,2]
[323607741,1714109448739,-459.23976,0.00012929,2]
[323607742,1714109448749,-448.2546162,0.00012929,2]
[323607743,1714109448765,-462.530729,0.0001293,2]
[323607744,1714109448774,-465.8216979,0.0001293,2]
[323607745,1714109448783,-451.4668643,0.0001293,2]
[323607746,1714109448792,-454.6791124,0.0001293,2]
[323607747,1714109448802,-182.58989164,0.00012938,2]
[323607748,1714109448811,-47965.35242156,0.00012939,2]
[323607749,1714109448819,-469.1126669,0.00012978,2]
[323607750,1714109448829,-472.4036359,0.00012978,2]
[323607751,1714109448838,-475.6946048,0.00012978,2]
[323607752,1714109448847,-457.8913604,0.00012978,2]
[323607753,1714109448857,-461.1036085,0.00012978,2]
[323607754,1714109448866,-464.3158566,0.00012978,2]
[323607755,1714109448875,-500.0,0.00012987,2]
[323607756,1714109448884,-500.0,0.00012987,2]
[323607757,1714109448893,-500.0,0.00012987,2]
[323607758,1714109448902,-500.0,0.00012987,2]